[Event "XVI Open Internacional Villa de Ibi"]
[Site "Ibi, Spain"]
[Date "????.??.??"]
[Round "2.1"]
[White "Garcia Amoros, Pablo"]
[Black "Plaskett, H James"]
[Result "0-1"]
[TimeControl "15' + 2'' por jugada"]
[WhiteElo "2097"]
[BlackElo "2450"]

1. e4 {[%clk 00:14:59]} {[%emt 00:00:10]} d6 {[%clk 00:15:03]} 2. d4 {[%clk
00:14:59]} {[%emt 00:00:03]} g6 {[%clk 00:15:05]} 3. Nc3 {[%clk 00:14:46]}
{[%emt 00:00:54]} Bg7 {[%clk 00:15:05]} 4. f4 {[%clk 00:14:41]} Nc6 {[%clk
00:14:57]} 5. d5 {[%clk 00:14:17]} {[%emt 00:00:09]} Nd4 {[%clk 00:14:43]}
{[%emt 00:00:08]} 6. Be3 {[%clk 00:14:05]} {[%emt 00:00:19]} c5 {[%clk
00:14:43]} {[%emt 00:00:03]} 7. dxc6 {[%clk 00:14:00]} {[%emt 00:00:04]} Nxc6
{[%clk 00:14:43]} {[%emt 00:00:03]} 8. Nf3 {[%clk 00:13:36]} {[%emt 00:00:22]}
Nf6 {[%clk 00:14:42]} {[%emt 00:00:05]} 9. Bd3 {[%clk 00:12:41]} {[%emt
00:00:56]} O-O {[%clk 00:14:31]} {[%emt 00:00:14]} 10. h3 {[%clk 00:12:25]}
{[%emt 00:00:16]} a6 {[%clk 00:13:38]} {[%emt 00:00:56]} 11. a4 {[%clk
00:11:53]} {[%emt 00:00:33]} Nb4 {[%clk 00:10:46]} {[%emt 00:02:53]} 12. O-O
{[%clk 00:11:40]} {[%emt 00:00:14]} Bd7 {[%clk 00:10:33]} {[%emt 00:00:44]} 13.
a5 {[%clk 00:09:58]} {[%emt 00:01:18]} Rc8 {[%clk 00:10:15]} {[%emt 00:00:20]}
14. Ne2 {[%clk 00:08:49]} {[%emt 00:01:14]} Bc6 {[%clk 00:09:57]} {[%emt
00:00:24]} 15. Ng3 {[%clk 00:07:28]} {[%emt 00:01:16]} Nd7 {[%clk 00:07:22]}
{[%emt 00:02:44]} 16. Qd2 {[%clk 00:07:16]} {[%emt 00:00:09]} Nxd3 {[%clk
00:07:22]} {[%emt 00:00:12]} 17. cxd3 {[%clk 00:07:17]} {[%emt 00:00:04]} Nc5
{[%clk 00:07:21]} 18. Ra3 {[%clk 00:06:37]} {[%emt 00:00:30]} f5 {[%clk
00:06:50]} {[%emt 00:00:36]} 19. e5 {[%clk 00:06:29]} {[%emt 00:00:09]} Ne6
{[%clk 00:06:42]} {[%emt 00:00:07]} 20. d4 {[%clk 00:06:19]} {[%emt 00:00:13]}
Bxf3 {[%clk 00:05:50]} {[%emt 00:01:00]} 21. Rxf3 {[%clk 00:06:02]} {[%emt
00:00:47]} dxe5 {[%clk 00:05:49]} 22. dxe5 {[%clk 00:05:57]} {[%emt 00:00:03]}
Qxd2 {[%clk 00:05:47]} 23. Bxd2 {[%clk 00:05:57]} Rc2 {[%clk 00:05:48]} 24. Bc3
{[%clk 00:02:30]} {[%emt 00:03:12]} Bh6 {[%emt 00:00:05]} 25. Ra4 Rd8 {[%clk
00:05:34]} {[%emt 00:00:11]} 26. Rb4 {[%clk 00:02:31]} {[%emt 00:00:08]} Rd7
{[%clk 00:05:09]} {[%emt 00:00:35]} 27. Rb6 {[%clk 00:02:24]} Nxf4 {[%clk
00:04:40]} {[%emt 00:00:25]} 28. Rf2 {[%clk 00:01:26]} {[%emt 00:01:01]} Rd1+
{[%clk 00:04:04]} {[%emt 00:00:46]} 29. Nf1 {[%clk 00:01:16]} {[%emt 00:00:19]}
Nxh3+ {[%clk 00:04:04]} 30. gxh3 {[%clk 00:01:11]} Be3 {[%clk 00:04:05]} 0-1

[Event "XVI Open Internacional Villa de Ibi"]
[Site "Ibi, Spain"]
[Date "????.??.??"]
[Round "2.2"]
[White "Giaccio, Alfredo"]
[Black "Corbi Marti, Joaquin"]
[Result "1-0"]
[TimeControl "15' + 2'' por jugada"]
[WhiteElo "2442"]
[BlackElo "2063"]

1. e4 {[%clk 00:15:01]} {[%emt 00:00:06]} c5 {[%clk 00:15:02]} 2. Nf3 {[%clk
00:15:01]} {[%emt 00:00:04]} d6 {[%clk 00:15:00]} {[%emt 00:00:04]} 3. Nc3
{[%clk 00:15:01]} {[%emt 00:00:08]} Nc6 {[%clk 00:15:00]} 4. d4 {[%clk
00:15:01]} cxd4 {[%clk 00:15:00]} 5. Nxd4 {[%clk 00:15:02]} {[%emt 00:00:04]}
Nf6 {[%clk 00:14:49]} {[%emt 00:00:07]} 6. Nb3 {[%clk 00:15:00]} {[%emt
00:00:07]} g6 {[%clk 00:14:41]} {[%emt 00:00:08]} 7. Be2 {[%clk 00:14:53]}
{[%emt 00:00:09]} Bg7 {[%clk 00:14:41]} 8. Be3 {[%clk 00:14:53]} {[%emt
00:00:05]} O-O {[%clk 00:14:41]} {[%emt 00:00:04]} 9. O-O {[%clk 00:14:53]}
{[%emt 00:00:08]} Be6 {[%clk 00:14:40]} 10. f4 {[%clk 00:14:50]} Na5 {[%clk
00:14:40]} {[%emt 00:00:04]} 11. f5 {[%clk 00:14:10]} {[%emt 00:00:38]} Bc4
{[%clk 00:14:35]} {[%emt 00:00:07]} 12. Bd4 {[%clk 00:14:09]} {[%emt 00:00:06]}
Rc8 {[%clk 00:11:53]} {[%emt 00:02:45]} 13. Nxa5 {[%clk 00:11:56]} {[%emt
00:02:10]} Qxa5 {[%clk 00:11:32]} {[%emt 00:00:24]} 14. Kh1 {[%clk 00:11:30]}
{[%emt 00:00:27]} b5 {[%clk 00:11:18]} {[%emt 00:00:17]} 15. a3 {[%clk
00:11:05]} {[%emt 00:00:28]} Bxe2 {[%clk 00:10:34]} {[%emt 00:00:50]} 16. Qxe2
{[%clk 00:11:04]} b4 {[%clk 00:10:23]} {[%emt 00:00:10]} 17. axb4 {[%clk
00:10:43]} {[%emt 00:00:23]} Qxb4 {[%clk 00:10:22]} {[%emt 00:00:07]} 18. Ra4
{[%clk 00:09:56]} {[%emt 00:00:45]} Qb8 {[%clk 00:09:00]} {[%emt 00:01:30]} 19.
b3 {[%clk 00:09:29]} {[%emt 00:00:24]} Nd7 {[%clk 00:07:20]} {[%emt 00:01:41]}
20. Nd5 {[%clk 00:09:10]} {[%emt 00:00:30]} Rfe8 {[%clk 00:06:45]} {[%emt
00:00:28]} 21. Rxa7 {[%clk 00:08:19]} {[%emt 00:00:53]} Bxd4 {[%clk 00:06:02]}
{[%emt 00:00:46]} 22. Rxd7 {[%clk 00:08:18]} {[%emt 00:00:05]} Rc5 {[%clk
00:03:35]} {[%emt 00:02:26]} 23. fxg6 {[%clk 00:06:47]} {[%emt 00:01:43]} hxg6
{[%clk 00:03:30]} 24. Nxe7+ {[%clk 00:06:29]} {[%emt 00:00:16]} Kg7 {[%clk
00:03:15]} {[%emt 00:00:17]} 25. Nc6 {[%clk 00:03:31]} {[%emt 00:03:01]} Rxc6
{[%clk 00:02:53]} {[%emt 00:00:23]} 26. Rfxf7+ {[%clk 00:03:31]} {[%emt
00:00:05]} Kg8 {[%clk 00:02:53]} 27. Qg4 {[%clk 00:03:28]} {[%emt 00:00:09]} d5
{[%clk 00:02:45]} {[%emt 00:00:06]} 28. Qh3 {[%clk 00:03:25]} {[%emt 00:00:05]}
1-0

[Event "XVI Open Internacional Villa de Ibi"]
[Site "Ibi, Spain"]
[Date "????.??.??"]
[Round "2.3"]
[White "Plaza Pardo, Jorge"]
[Black "Cruz Lledo, Pablo"]
[Result "0-1"]
[TimeControl "15' + 2'' por jugada"]
[WhiteElo "2094"]
[BlackElo "2436"]

1. e4 {[%clk 00:14:59]} {[%emt 00:00:06]} c6 {[%clk 00:15:03]} {[%emt
00:00:04]} 2. d4 {[%clk 00:14:57]} {[%emt 00:00:09]} d5 {[%clk 00:15:04]} 3.
Nc3 {[%clk 00:14:57]} {[%emt 00:00:03]} dxe4 {[%clk 00:15:04]} 4. Nxe4 {[%clk
00:14:57]} Nf6 {[%clk 00:15:04]} 5. Ng3 {[%clk 00:14:40]} {[%emt 00:00:22]} h5
{[%clk 00:15:01]} {[%emt 00:00:10]} 6. h4 {[%clk 00:14:39]} Bg4 {[%clk
00:15:01]} 7. Be2 {[%clk 00:14:24]} {[%emt 00:00:20]} e6 {[%clk 00:14:53]}
{[%emt 00:00:07]} 8. Nf3 {[%clk 00:13:46]} {[%emt 00:00:40]} Nbd7 {[%clk
00:14:51]} 9. Qd3 {[%clk 00:12:32]} {[%emt 00:01:16]} Qc7 {[%clk 00:14:30]}
{[%emt 00:00:30]} 10. Ng5 {[%clk 00:11:46]} {[%emt 00:01:03]} Bf5 {[%clk
00:13:56]} {[%emt 00:00:11]} 11. Nxf5 {[%clk 00:11:41]} {[%emt 00:00:33]} exf5
{[%clk 00:13:55]} {[%emt 00:00:04]} 12. Qxf5 {[%clk 00:11:37]} g6 {[%clk
00:13:31]} {[%emt 00:00:05]} 13. Qf3 {[%clk 00:11:18]} {[%emt 00:00:22]} Bd6
{[%clk 00:13:13]} {[%emt 00:00:19]} 14. Be3 {[%clk 00:10:14]} {[%emt 00:01:06]}
O-O {[%clk 00:12:45]} {[%emt 00:01:00]} 15. Bc4 {[%clk 00:09:55]} {[%emt
00:00:07]} Rae8 {[%clk 00:12:24]} {[%emt 00:00:06]} 16. O-O-O {[%clk 00:09:28]}
{[%emt 00:00:32]} Kg7 {[%clk 00:12:25]} {[%emt 00:00:04]} 17. Rhe1 {[%clk
00:07:57]} {[%emt 00:01:39]} b5 {[%clk 00:12:03]} {[%emt 00:00:13]} 18. Bb3
{[%clk 00:07:55]} {[%emt 00:00:08]} a5 {[%clk 00:12:03]} {[%emt 00:00:03]} 19.
Bd2 {[%clk 00:07:47]} {[%emt 00:00:30]} Rxe1 {[%clk 00:08:35]} {[%emt
00:03:05]} 20. Rxe1 {[%clk 00:07:47]} {[%emt 00:00:30]} Qb6 {[%clk 00:08:24]}
{[%emt 00:00:03]} 21. Bxf7 {[%clk 00:05:09]} {[%emt 00:02:22]} Rxf7 {[%clk
00:08:24]} {[%emt 00:00:27]} 22. Nxf7 {[%clk 00:05:09]} Kxf7 {[%clk 00:08:16]}
{[%emt 00:00:03]} 23. Qe3 {[%clk 00:05:10]} Nf8 {[%clk 00:07:58]} {[%emt
00:00:35]} 24. f3 {[%clk 00:04:36]} {[%emt 00:00:08]} Qd8 {[%clk 00:06:59]}
{[%emt 00:00:59]} 25. Qb3+ {[%clk 00:03:48]} {[%emt 00:00:49]} Nd5 {[%clk
00:06:49]} {[%emt 00:00:13]} 26. Bg5 {[%clk 00:03:30]} {[%emt 00:00:20]} Qc7
{[%clk 00:06:48]} {[%emt 00:00:32]} 27. c4 {[%clk 00:02:08]} {[%emt 00:00:54]}
bxc4 {[%clk 00:06:31]} {[%emt 00:00:19]} 28. Qxc4 {[%clk 00:02:08]} {[%emt
00:00:44]} Ne6 {[%clk 00:06:19]} 29. Kb1 {[%clk 00:01:27]} {[%emt 00:00:17]}
Qd7 {[%clk 00:05:55]} {[%emt 00:00:24]} 30. Rc1 {[%clk 00:01:19]} {[%emt
00:00:13]} Nxg5 {[%clk 00:05:14]} {[%emt 00:00:41]} 31. hxg5 {[%clk 00:01:19]}
{[%emt 00:00:27]} Qf5+ {[%clk 00:05:15]} 32. Ka1 {[%clk 00:01:17]} Bf4 {[%clk
00:04:55]} {[%emt 00:00:04]} 33. Re1 {[%clk 00:01:15]} {[%emt 00:00:09]} Qd7
{[%clk 00:04:04]} {[%emt 00:00:56]} 34. Qa6 Qc7 {[%clk 00:02:51]} {[%emt
00:01:06]} 35. Qa8 {[%clk 00:01:08]} {[%emt 00:00:33]} Bxg5 {[%clk 00:02:37]}
36. Qh8 {[%clk 00:01:06]} {[%emt 00:00:12]} Bf6 {[%clk 00:02:31]} {[%emt
00:00:10]} 37. Qe8+ {[%emt 00:00:15]} Kg7 {[%clk 00:02:29]} 38. g4 {[%clk
00:00:40]} {[%emt 00:00:03]} Nb4 {[%clk 00:02:09]} {[%emt 00:00:29]} 39. Kb1
{[%clk 00:00:28]} {[%emt 00:00:08]} Qf7 {[%clk 00:02:02]} {[%emt 00:00:12]} 40.
Qxf7+ {[%clk 00:00:23]} {[%emt 00:00:09]} Kxf7 {[%clk 00:02:01]} {[%emt
00:00:03]} 41. gxh5 {[%clk 00:00:25]} gxh5 {[%clk 00:02:00]} 42. Re4 {[%clk
00:00:15]} {[%emt 00:00:08]} h4 {[%clk 00:01:58]} {[%emt 00:00:23]} 43. a3
{[%clk 00:00:10]} {[%emt 00:00:05]} Nd5 {[%clk 00:01:58]} {Bandera} 0-1

[Event "XVI Open Internacional Villa de Ibi"]
[Site "Ibi, Spain"]
[Date "????.??.??"]
[Round "2.4"]
[White "Campos Gambuti, Luis Maria"]
[Black "Perez Roses, Antonio"]
[Result "0-1"]
[TimeControl "15' + 2'' por jugada"]
[WhiteElo "2382"]
[BlackElo "2045"]

1. d4 {[%clk 00:15:03]} {[%emt 00:00:12]} Nf6 {[%clk 00:15:03]} 2. Nc3 {[%clk
00:15:03]} d5 {[%clk 00:14:59]} 3. Bg5 {[%clk 00:15:04]} g6 {[%clk 00:14:59]}
{[%emt 00:00:08]} 4. Bxf6 {[%clk 00:15:02]} {[%emt 00:00:03]} exf6 {[%clk
00:14:59]} 5. e3 {[%clk 00:15:03]} Bg7 {[%clk 00:14:55]} {[%emt 00:00:03]} 6.
Qf3 {[%clk 00:15:03]} {[%emt 00:00:08]} c6 {[%clk 00:14:50]} {[%emt 00:00:04]}
7. Bd3 {[%clk 00:14:58]} {[%emt 00:00:05]} f5 {[%clk 00:14:48]} {[%emt
00:00:06]} 8. h3 {[%clk 00:14:56]} {[%emt 00:00:03]} h5 {[%clk 00:13:58]}
{[%emt 00:00:47]} 9. Nge2 {[%clk 00:14:56]} {[%emt 00:00:18]} Nd7 {[%clk
00:13:55]} 10. O-O-O {[%clk 00:14:27]} {[%emt 00:00:21]} Nf6 {[%clk 00:13:41]}
{[%emt 00:00:16]} 11. Qf4 {[%clk 00:14:10]} {[%emt 00:00:19]} Qe7 {[%clk
00:13:41]} {[%emt 00:00:10]} 12. Kb1 {[%clk 00:13:26]} {[%emt 00:00:52]} Ne4
{[%clk 00:13:00]} {[%emt 00:00:38]} 13. h4 {[%clk 00:11:57]} {[%emt 00:01:22]}
Be6 {[%clk 00:12:01]} {[%emt 00:01:01]} 14. Na4 {[%clk 00:10:49]} {[%emt
00:01:09]} b6 {[%clk 00:11:12]} {[%emt 00:00:53]} 15. b3 {[%clk 00:09:58]}
{[%emt 00:00:56]} O-O {[%clk 00:10:26]} {[%emt 00:00:43]} 16. Nb2 {[%clk
00:09:03]} {[%emt 00:00:58]} b5 {[%clk 00:09:02]} {[%emt 00:01:33]} 17. Bxe4
{[%clk 00:08:15]} {[%emt 00:00:41]} dxe4 {[%clk 00:07:38]} {[%emt 00:01:26]} 18.
Rc1 {[%clk 00:07:44]} {[%emt 00:00:45]} a5 {[%clk 00:06:30]} {[%emt 00:01:17]}
19. c3 {[%clk 00:07:38]} {[%emt 00:00:05]} a4 {[%clk 00:05:48]} {[%emt
00:00:29]} 20. b4 {[%clk 00:07:38]} {[%emt 00:00:05]} a3 {[%clk 00:05:12]}
{[%emt 00:00:37]} 21. Nd1 {[%clk 00:07:14]} {[%emt 00:00:25]} Bc4 {[%clk
00:05:13]} {[%emt 00:00:03]} 22. Rc2 {[%clk 00:06:26]} {[%emt 00:00:54]} Bd3
{[%clk 00:05:02]} {[%emt 00:00:08]} 23. Nc1 {[%clk 00:06:26]} {[%emt 00:00:07]}
Bxc2+ {[%clk 00:04:58]} {[%emt 00:00:04]} 24. Kxc2 {[%clk 00:06:26]} Qe6 {[%clk
00:04:56]} {[%emt 00:00:03]} 25. Qg3 {[%clk 00:05:46]} {[%emt 00:00:39]} Rfc8
{[%clk 00:04:22]} {[%emt 00:01:00]} 26. Re1 {[%clk 00:05:42]} {[%emt 00:00:03]}
Qc4 {[%clk 00:04:12]} 27. Kd2 {[%clk 00:05:14]} {[%emt 00:00:22]} Bf8 {[%clk
00:03:40]} {[%emt 00:00:49]} 28. Nb3 {[%clk 00:04:53]} {[%emt 00:00:08]} Qd3+
{[%clk 00:03:00]} {[%emt 00:00:41]} 29. Kc1 {[%clk 00:04:54]} Ra4 {[%clk
00:02:45]} {[%emt 00:00:18]} 30. f4 {[%clk 00:03:38]} {[%emt 00:01:19]} Bxb4
{[%clk 00:02:32]} {[%emt 00:00:14]} 31. Re2 {[%clk 00:03:40]} {[%emt 00:00:19]}
Bxc3 {[%clk 00:02:08]} {[%emt 00:00:40]} 32. Nxc3 {[%clk 00:02:35]} {[%emt
00:01:03]} Rc4 {[%clk 00:02:07]} 33. Rd2 {[%clk 00:02:16]} {[%emt 00:00:04]}
Rxc3+ {[%clk 00:01:55]} {[%emt 00:00:08]} 34. Kd1 {[%clk 00:02:17]} {[%emt
00:00:04]} Qb1+ {[%clk 00:01:27]} {[%emt 00:00:25]} 35. Ke2 {[%clk 00:02:13]}
{[%emt 00:00:11]} Rc2 {[%clk 00:01:27]} 36. Qe1 {[%clk 00:02:09]} {[%emt
00:00:04]} Qxe1+ {[%clk 00:01:23]} {[%emt 00:00:07]} 37. Kxe1 {[%clk 00:02:10]}
Rxd2 {[%clk 00:01:18]} {[%emt 00:00:09]} 38. Kxd2 {[%clk 00:02:11]} Kf8 {[%clk
00:01:13]} {[%emt 00:00:11]} 39. Kc3 {[%clk 00:02:12]} Ke7 {[%clk 00:01:12]} 40.
Kb4 {[%clk 00:02:10]} {[%emt 00:00:06]} Ra8 {[%clk 00:01:12]} 41. Nc5 {[%clk
00:01:59]} {[%emt 00:00:11]} Kd6 {[%clk 00:01:12]} {[%emt 00:00:03]} 42. Kb3
{[%clk 00:01:54]} {[%emt 00:00:05]} f6 {[%clk 00:01:04]} {[%emt 00:00:13]} 43.
Nb7+ {[%clk 00:01:45]} {[%emt 00:00:15]} Kd5 {[%clk 00:01:03]} 44. Nc5 {[%clk
00:01:42]} {[%emt 00:00:08]} g5 {[%clk 00:01:03]} 45. Nd7 {[%clk 00:00:50]}
{[%emt 00:01:01]} Ke6 {[%clk 00:00:47]} {[%emt 00:00:07]} 46. Nc5+ {[%clk
00:00:51]} Kd6 {[%clk 00:00:38]} {[%emt 00:00:13]} 47. hxg5 {[%clk 00:00:38]}
{[%emt 00:00:13]} fxg5 {[%clk 00:00:38]} {[%emt 00:00:10]} 48. fxg5 {[%clk
00:00:39]} Rg8 {[%clk 00:00:38]} 49. Kxa3 {[%clk 00:00:30]} {[%emt 00:00:07]}
Rxg5 {[%clk 00:00:38]} {[%emt 00:00:20]} 0-1

[Event "XVI Open Internacional Villa de Ibi"]
[Site "Ibi, Spain"]
[Date "????.??.??"]
[Round "2.6"]
[White "Diaz Velandia, Jose Manuel"]
[Black "Martinez Sanchez, Pedro Jose"]
[Result "1-0"]
[TimeControl "15' + 2'' por jugada"]
[WhiteElo "2368"]
[BlackElo "2030"]

1. d4 {[%clk 00:14:05]} Nf6 {[%clk 00:15:01]} {[%emt 00:00:04]} 2. Nf3 {[%clk
00:14:06]} {[%emt 00:00:11]} e6 {[%clk 00:14:59]} 3. e3 {[%clk 00:14:07]} d5
{[%clk 00:14:56]} 4. Bd3 {[%clk 00:14:07]} {[%emt 00:00:04]} c5 {[%clk
00:14:47]} {[%emt 00:00:06]} 5. c3 {[%clk 00:14:08]} {[%emt 00:00:09]} Nc6
{[%clk 00:14:45]} {[%emt 00:00:04]} 6. Nbd2 {[%clk 00:14:08]} Be7 {[%clk
00:14:26]} {[%emt 00:00:31]} 7. O-O {[%clk 00:14:08]} O-O {[%clk 00:14:14]}
{[%emt 00:00:04]} 8. dxc5 {[%clk 00:14:09]} Bxc5 {[%clk 00:14:14]} {[%emt
00:00:04]} 9. e4 {[%clk 00:14:10]} dxe4 {[%clk 00:13:18]} {[%emt 00:00:55]} 10.
Nxe4 {[%clk 00:14:10]} {[%emt 00:00:39]} Nxe4 {[%clk 00:12:39]} {[%emt
00:00:08]} 11. Bxe4 {[%clk 00:14:11]} {[%emt 00:00:15]} f5 {[%clk 00:12:38]} 12.
Bxc6 {[%clk 00:13:44]} {[%emt 00:00:13]} bxc6 {[%clk 00:12:38]} {[%emt
00:00:25]} 13. Qxd8 {[%clk 00:13:38]} {[%emt 00:00:03]} Rxd8 {[%clk 00:12:38]}
14. Bg5 {[%clk 00:13:36]} Rd5 {[%clk 00:11:47]} {[%emt 00:00:42]} 15. c4 {[%clk
00:13:07]} {[%emt 00:00:31]} Rd3 {[%clk 00:11:15]} {[%emt 00:00:34]} 16. Ne5
{[%clk 00:13:05]} {[%emt 00:00:16]} Rd4 {[%clk 00:11:08]} {[%emt 00:00:18]} 17.
Rfe1 {[%clk 00:12:25]} {[%emt 00:00:20]} Bb4 {[%clk 00:10:54]} {[%emt
00:00:22]} 18. Re2 {[%clk 00:12:09]} {[%emt 00:00:14]} Bb7 {[%clk 00:10:38]}
{[%emt 00:00:17]} 19. b3 {[%clk 00:11:29]} {[%emt 00:00:55]} h6 {[%clk
00:10:17]} {[%emt 00:00:24]} 20. Be3 {[%clk 00:11:30]} Rdd8 {[%clk 00:09:58]}
{[%emt 00:00:10]} 21. Rb1 {[%clk 00:11:08]} {[%emt 00:00:22]} Bc3 {[%clk
00:09:31]} {[%emt 00:00:29]} 22. Nf3 {[%clk 00:10:57]} {[%emt 00:00:13]} Kf7
{[%clk 00:09:19]} {[%emt 00:00:16]} 23. Rc1 {[%clk 00:10:26]} {[%emt 00:00:30]}
Bf6 {[%clk 00:09:08]} {[%emt 00:00:17]} 24. Bc5 {[%clk 00:10:10]} {[%emt
00:00:15]} g5 {[%clk 00:08:34]} {[%emt 00:00:39]} 25. h3 {[%clk 00:10:10]} h5
{[%clk 00:08:28]} {[%emt 00:00:07]} 26. Rce1 {[%clk 00:10:11]} {[%emt
00:00:10]} g4 {[%clk 00:08:25]} {[%emt 00:00:03]} 27. Nh2 {[%clk 00:09:30]}
{[%emt 00:00:41]} e5 {[%clk 00:08:14]} {[%emt 00:00:08]} 28. hxg4 {[%clk
00:09:10]} {[%emt 00:00:22]} hxg4 {[%clk 00:08:14]} {[%emt 00:00:21]} 29. Nf1
{[%clk 00:09:11]} a5 {[%clk 00:07:42]} {[%emt 00:00:19]} 30. Ne3 {[%clk
00:07:45]} {[%emt 00:01:25]} Kg6 {[%clk 00:07:34]} {[%emt 00:00:23]} 31. f3
{[%clk 00:05:42]} {[%emt 00:01:51]} g3 {[%clk 00:07:11]} {[%emt 00:00:26]} 32.
Nf1 {[%clk 00:05:40]} {[%emt 00:00:36]} a4 {[%clk 00:06:50]} 33. Nxg3 {[%clk
00:05:20]} {[%emt 00:00:44]} axb3 {[%clk 00:06:51]} 34. axb3 {[%clk 00:05:21]}
Rd3 {[%clk 00:06:44]} {[%emt 00:00:04]} 35. Rb1 {[%clk 00:04:54]} {[%emt
00:00:07]} Ra5 {[%clk 00:05:19]} {[%emt 00:01:25]} 36. b4 {[%clk 00:04:08]}
{[%emt 00:00:47]} Ra4 {[%clk 00:05:19]} {[%emt 00:00:36]} 37. Rc2 {[%clk
00:03:58]} e4 {[%clk 00:05:08]} 38. Ne2 {[%clk 00:03:22]} {[%emt 00:00:30]} Be5
{[%clk 00:04:53]} {[%emt 00:00:38]} 39. fxe4 {[%clk 00:03:10]} fxe4 {[%clk
00:04:50]} 40. Re1 {[%clk 00:03:04]} {[%emt 00:00:07]} Bc8 {[%clk 00:04:40]}
{[%emt 00:00:17]} 41. Nc1 {[%clk 00:03:02]} Bf4 {[%clk 00:04:21]} {[%emt
00:00:22]} 42. Nxd3 {[%clk 00:01:51]} {[%emt 00:01:30]} exd3 {[%clk 00:04:22]}
43. Rb2 {[%clk 00:01:50]} Bg4 {[%clk 00:03:54]} {[%emt 00:00:20]} 44. Be3
{[%clk 00:01:33]} {[%emt 00:00:13]} Be5 {[%clk 00:03:47]} {[%emt 00:00:12]} 45.
Rb3 {[%clk 00:01:22]} {[%emt 00:00:12]} Bf5 {[%clk 00:03:36]} {[%emt 00:00:12]}
46. b5 {[%clk 00:01:02]} {[%emt 00:00:20]} Rxc4 {[%clk 00:03:33]} {[%emt
00:00:31]} 47. b6 {[%clk 00:01:04]} Be4 {[%clk 00:03:13]} {[%emt 00:00:13]} 48.
b7 {[%clk 00:01:04]} Rc2 {[%clk 00:03:13]} 49. b8=Q {[%clk 00:00:37]} {[%emt
00:00:39]} Bxb8 {[%clk 00:01:51]} {[%emt 00:01:04]} 50. Rxb8 {[%clk 00:00:38]}
{[%emt 00:00:08]} Rxg2+ {[%clk 00:01:29]} {[%emt 00:00:39]} 51. Kf1 {[%clk
00:00:39]} Rh2 {[%clk 00:01:29]} {[%emt 00:00:04]} 52. Bg1 {[%clk 00:00:19]}
{[%emt 00:00:17]} Rh4 {[%clk 00:00:55]} {[%emt 00:00:15]} 53. Rg8+ {[%clk
00:00:20]} {[%emt 00:00:07]} Kf7 {[%clk 00:00:56]} {[%emt 00:00:06]} 54. Rd8
{[%clk 00:00:09]} {[%emt 00:00:05]} Rf4+ {[%clk 00:00:36]} {[%emt 00:00:21]} 55.
Bf2 {[%clk 00:00:10]} c5 {[%clk 00:00:37]} {[%emt 00:00:04]} 56. Rxe4 {[%clk
00:00:04]} {[%emt 00:00:06]} Rxe4 {[%clk 00:00:38]} {[%emt 00:00:03]} 57. Rxd3
{[%clk 00:00:04]} Rc4 {[%clk 00:00:40]} {[%emt 00:00:04]} 58. Ke2 {[%clk
00:00:05]} Ke6 {[%clk 00:00:40]} 59. Rd2 {[%clk 00:00:05]} {[%emt 00:00:08]}
Ke5 {[%clk 00:00:41]} 60. Kd3 {[%clk 00:00:05]} {[%emt 00:00:04]} Kd5 {[%clk
00:00:39]} 61. Ra2 {[%clk 00:00:04]} {[%emt 00:00:03]} Rb4 {[%clk 00:00:36]}
{[%emt 00:00:03]} 62. Be1 {[%clk 00:00:05]} Rb3+ {[%clk 00:00:37]} 63. Bc3
{[%clk 00:00:06]} {[%emt 00:00:04]} Rb7 {[%clk 00:00:36]} 64. Rh2 {[%clk
00:00:07]} {[%emt 00:00:03]} Rd7 {[%clk 00:00:36]} {[%emt 00:00:03]} 65. Rh5+
Kc6+ 66. Kc4 {[%clk 00:00:10]} Rd6 {[%clk 00:00:38]} {[%emt 00:00:06]} 67.
Rxc5+ {[%clk 00:00:10]} Kb6 {[%clk 00:00:39]} {[%emt 00:00:03]} 68. Rb5+ {[%clk
00:00:11]} Kc6 {[%clk 00:00:39]} 69. Ra5 {[%clk 00:00:13]} Kb6 {[%clk
00:00:38]} {[%emt 00:00:03]} 70. Ra1 {[%clk 00:00:14]} Rg6 {[%clk 00:00:38]}
{[%emt 00:00:06]} 71. Bd4+ {[%clk 00:00:15]} Kc6 {[%clk 00:00:38]} 72. Ra6+
{[%clk 00:00:16]} 1-0